Workbook

Sheet Hoja1
A1: SERVICIO NACIONAL DE SALUD
A2: INGRESOS Y GASTOS EN ATENCION ODONTOLOGICA
A3: DESDE EL 3 DE ENERO AL 30 DE JUNIO 2025
A4: ESTABLECIMIENTO: __SRS-ESTE _____________________________________________
A6: MESES | B6: INGRESOS | E6: GASTOS
B7: SUBSIDIADO SENASA | C7: COPAGO | D7: TOTAL | E7: MEDICAMENTOS, MATERIALES E INSUMOS MEDICOS | F7: EQUIPAMIENTOS | G7: MANTENIMIENTOS Y/O ADECUACION DE AREAS | H7: TOTAL MENSUAL
A8: ENERO | B8: 300,000.00 | D8: =SUM(B8:C8) -> 300,000.00 | E8: 183,878.59 | F8: 0 | H8: =E8 -> 183,878.59
A9: FEBRERO | B9: 300,000.00 | C9: 45,550.00 | D9: =SUM(B9:C9) -> 345,550.00 | E9: 190,334.13 | F9: 0 | H9: =E9 -> 190,334.13
A10: MARZO | B10: 300,000.00 | C10: 170,790.00 | D10: 470,790.00 | F10: =SUM(E10) -> 0 | G10: 59,815.00 | H10: =E10 -> 0
A11: ABRIL | B11: 0.00 | C11: 21,200.00 | D11: 21,200.00 | F11: 0
A12: MAYO | B12: 300,000.00 | C12: 91,782.00 | D12: 391,782.00 | F12: 0
A13: JUNIO | B13: 300,000.00 | C13: 77,700.00 | D13: 377,700.00 | F13: 0 | G13: 4,964.85
A14: JULIO | D14: 0 | F14: 0
A15: AGOSTO | D15: 0 | F15: 0
A16: SEPTIEMBRE | D16: 0 | F16: 0
A17: OCTUBRE | D17: 0 | F17: 0
A18: NOVIEMBRE | D18: 0 | F18: 0
A19: DICIEMBRE | D19: 0 | F19: 0
A20: TOTAL | B20: =SUM(B8:B17) -> 1,500,000.00 | C20: =SUM(C8:C18) -> 407,022.00 | D20: =SUM(D8:D18) -> 1,907,022.00 | E20: =SUM(E8:E17) -> 374,212.72 | F20: 0 | G20: =SUM(G8:G17) -> 64,779.85 | H20: =SUM(E20:G20) -> 438,992.57
A21: TRIMETRAL | B21: INGRESOS | E21: GASTOS
B22: SUBSIDIADO SENASA | C22: COPAGO | D22: TOTAL | E22: MEDICAMENTOS, MATERIALES E INSUMOS MEDICOS | F22: EQUIPAMIENTOS | G22: MANTENIMIENTOS Y/O ADECUACION DE AREAS | H22: TOTAL MENSUAL
A23: 1r TRINESTRE | B23: 900,000.00 | C23: 216,340.00 | D23: =B23+C23 -> 1,116,340.00 | E23: 374,212.72 | G23: 59,815.00 | H23: =E23 -> 374,212.72
A24: 2 do TRIMESTRE | B24: 600,000.00 | C24: 190,682.00 | D24: =B24+C24 -> 790,682.00 | G24: 4,964.85 | H24: =E24 -> 0
A26: TOTAL | B26: =SUM(B23:B24) -> 1,500,000.00 | C26: =SUM(C23:C24) -> 407,022.00 | D26: 1,907,022.00 | E26: 374,212.72 | F26: 0 | G26: 64,779.85 | H26: 374,212.72
B28: ________________________________ | D28: ____________________________________ | F28: ______________________________________
B29: PREPARADO POR_Lic.Ivelisse Santana | D29: VERIFICADO POR: Lic. Yudelky Jabalera | F29: APROBADO POR: Dr. Ricardo Julio Romero
B30: Enc. Contabilidad | D30: Enc.Administrativo | F30: Director
